[Event "Titled Tuesday Blitz March 07 Late 2023"]
[White "Przybylski, Wojciech"]
[Black "Awoki, Daniel Teidi"]
[WhiteFideId "1117599"]
[BlackFideId "2100827"]
[WhiteElo "2222"]
[BlackElo "2087"]
[Result "0-1"]
[Round "02"]
[TimeControl "180+2"]
[Date "2023.03.07"]
[WhiteClock "0:00:05"]
[BlackClock "0:00:06"]

1. d4 {[%clk 0:03:00]}  Nf6 {[%clk 0:02:59]} 2. c4 {[%clk 0:03:00]}  e6 {[%clk 0:03:00]} 3. Nf3 {[%clk 0:03:00]}  d5 {[%clk 0:03:00]} 4. g3 {[%clk 0:03:00]}  Be7 {[%clk 0:03:00]} 5. Bg2 {[%clk 0:03:01]}  O-O {[%clk 0:03:01]} 6. O-O {[%clk 0:03:00]}  dxc4 {[%clk 0:03:02]} 7. Nbd2 {[%clk 0:02:59]}  c5 {[%clk 0:02:59]} 8. Nxc4 {[%clk 0:02:58]}  cxd4 {[%clk 0:02:59]} 9. Qxd4 {[%clk 0:02:58]}  Nc6 {[%clk 0:02:58]} 10. Qc3 {[%clk 0:02:39]}  Nd5 {[%clk 0:02:50]} 11. Qc2 {[%clk 0:02:36]}  Qc7 {[%clk 0:02:43]} 12. Nce5 {[%clk 0:02:25]}  Nxe5 {[%clk 0:02:40]} 13. Qb3 {[%clk 0:02:09]}  Nxf3+ {[%clk 0:02:38]} 14. Bxf3 {[%clk 0:02:09]}  Bd7 {[%clk 0:02:35]} 15. e4 {[%clk 0:02:06]}  Nf6 {[%clk 0:02:35]} 16. Be3 {[%clk 0:01:59]}  Bc6 {[%clk 0:02:34]} 17. Rac1 {[%clk 0:01:55]}  e5 {[%clk 0:02:29]} 18. Rfe1 {[%clk 0:01:47]}  Rac8 {[%clk 0:02:28]} 19. Bxa7 {[%clk 0:01:44]}  Qa5 {[%clk 0:02:16]} 20. Bb6 {[%clk 0:01:38]}  Qb5 {[%clk 0:02:16]} 21. Qxb5 {[%clk 0:01:14]}  Bxb5 {[%clk 0:02:17]} 22. Bc7 {[%clk 0:01:14]}  Nd7 {[%clk 0:02:08]} 23. Bg4 {[%clk 0:01:05]}  Bc6 {[%clk 0:01:58]} 24. Ba5 {[%clk 0:00:52]}  Ra8 {[%clk 0:01:48]} 25. b4 {[%clk 0:00:41]}  Nf6 {[%clk 0:01:42]} 26. Bf3 {[%clk 0:00:34]}  Rfc8 {[%clk 0:01:33]} 27. a3 {[%clk 0:00:32]}  g6 {[%clk 0:01:32]} 28. Re3 {[%clk 0:00:23]}  Kg7 {[%clk 0:01:29]} 29. Rec3 {[%clk 0:00:22]}  Re8 {[%clk 0:01:24]} 30. Re3 {[%clk 0:00:18]}  h5 {[%clk 0:01:21]} 31. Bc7 {[%clk 0:00:16]}  Nd7 {[%clk 0:01:16]} 32. Be2 {[%clk 0:00:15]}  Ba4 {[%clk 0:01:07]} 33. b5 {[%clk 0:00:10]}  Rec8 {[%clk 0:00:53]} 34. Rec3 {[%clk 0:00:10]}  Re8 {[%clk 0:00:42]} 35. f4 {[%clk 0:00:09]}  exf4 {[%clk 0:00:41]} 36. gxf4 {[%clk 0:00:09]}  Nf8 {[%clk 0:00:38]} 37. f5 {[%clk 0:00:08]}  Bf6 {[%clk 0:00:32]} 38. Rc4 {[%clk 0:00:04]}  Bxb5 {[%clk 0:00:28]} 39. R4c2 {[%clk 0:00:03]}  Bxe2 {[%clk 0:00:28]} 40. Rxe2 {[%clk 0:00:03]}  Be5 {[%clk 0:00:26]} 41. Bxe5+ {[%clk 0:00:02]}  Rxe5 {[%clk 0:00:26]} 42. Rc7 {[%clk 0:00:02]}  Rxa3 {[%clk 0:00:25]} 43. fxg6 {[%clk 0:00:02]}  Nxg6 {[%clk 0:00:24]} 44. Rf2 {[%clk 0:00:03]}  Re7 {[%clk 0:00:22]} 45. Rc5 {[%clk 0:00:03]}  Rxe4 {[%clk 0:00:21]} 46. Rxh5 {[%clk 0:00:03]}  Ra1+ {[%clk 0:00:19]} 47. Kg2 {[%clk 0:00:03]}  Nf4+ {[%clk 0:00:16]} 48. Kf3 {[%clk 0:00:03]}  Nxh5 {[%clk 0:00:12]} 49. Kxe4 {[%clk 0:00:04]}  Ra4+ {[%clk 0:00:11]} 50. Kd5 {[%clk 0:00:04]}  Nf6+ {[%clk 0:00:11]} 51. Ke5 {[%clk 0:00:03]}  Re4+ {[%clk 0:00:10]} 52. Kf5 {[%clk 0:00:03]}  Rg4 {[%clk 0:00:06]} 53. Rb2 {[%clk 0:00:02]}  Rh4 {[%clk 0:00:04]} 54. Rxb7 {[%clk 0:00:02]}  Nh5 {[%clk 0:00:04]} 55. Kg5 {[%clk 0:00:02]}  Rxh2 {[%clk 0:00:04]} 56. Rb6 {[%clk 0:00:03]}  Ng3 {[%clk 0:00:03]} 57. Kg4 {[%clk 0:00:03]}  Ne4 {[%clk 0:00:03]} 58. Rb4 {[%clk 0:00:03]}  Nf6+ {[%clk 0:00:03]} 59. Kg3 {[%clk 0:00:04]}  Ra2 {[%clk 0:00:02]} 60. Rb5 {[%clk 0:00:04]}  Ra3+ {[%clk 0:00:03]} 61. Kf4 {[%clk 0:00:05]}  Ra4+ {[%clk 0:00:03]} 62. Kf3 {[%clk 0:00:05]}  Rh4 {[%clk 0:00:03]} 63. Rg5+ {[%clk 0:00:05]}  Kh6 {[%clk 0:00:03]} 64. Rf5 {[%clk 0:00:06]}  Kg6 {[%clk 0:00:03]} 65. Rb5 {[%clk 0:00:06]}  Rh5 {[%clk 0:00:03]} 66. Rb6 {[%clk 0:00:06]}  Rf5+ {[%clk 0:00:04]} 67. Kg3 {[%clk 0:00:06]}  Rg5+ {[%clk 0:00:04]} 68. Kf3 {[%clk 0:00:06]}  Kg7 {[%clk 0:00:04]} 69. Kf4 {[%clk 0:00:07]}  Rg6 {[%clk 0:00:04]} 70. Kf5 {[%clk 0:00:07]}  Ng8 {[%clk 0:00:04]} 71. Rb7 {[%clk 0:00:07]}  Nh6+ {[%clk 0:00:04]} 72. Kf4 {[%clk 0:00:08]}  Rf6+ {[%clk 0:00:04]} 73. Kg5 {[%clk 0:00:08]}  Rf5+ {[%clk 0:00:04]} 74. Kh4 {[%clk 0:00:08]}  Rc5 {[%clk 0:00:04]} 75. Kg3 {[%clk 0:00:08]}  Kg6 {[%clk 0:00:04]} 76. Kf4 {[%clk 0:00:09]}  f6 {[%clk 0:00:05]} 77. Rb6 {[%clk 0:00:09]}  Rc4+ {[%clk 0:00:05]} 78. Kf3 {[%clk 0:00:09]}  Kg5 {[%clk 0:00:06]} 79. Rb8 {[%clk 0:00:09]}  f5 {[%clk 0:00:06]} 80. Rf8 {[%clk 0:00:09]}  Rc3+ {[%clk 0:00:06]} 81. Kf2 {[%clk 0:00:09]}  Kf4 {[%clk 0:00:06]} 82. Rh8 {[%clk 0:00:09]}  Rc2+ {[%clk 0:00:06]} 83. Ke1 {[%clk 0:00:09]}  Ng4 {[%clk 0:00:07]} 84. Rd8 {[%clk 0:00:09]}  Kf3 {[%clk 0:00:07]} 85. Rd3+ {[%clk 0:00:08]}  Ke4 {[%clk 0:00:06]} 86. Ra3 {[%clk 0:00:08]}  f4 {[%clk 0:00:06]} 87. Ra4+ {[%clk 0:00:07]}  Kf3 {[%clk 0:00:06]} 88. Rb4 {[%clk 0:00:06]}  Rc1+ {[%clk 0:00:06]} 89. Kd2 {[%clk 0:00:06]}  Rc7 {[%clk 0:00:06]} 90. Rb6 {[%clk 0:00:06]}  Rd7+ {[%clk 0:00:06]} 91. Ke1 {[%clk 0:00:05]}  Ne3 {[%clk 0:00:06]} 92. Rb1 {[%clk 0:00:05]}  Rd1+ {[%clk 0:00:06]} 93. Rxd1 {[%clk 0:00:05]}  Nxd1 {[%clk 0:00:07]} 94. Kf1 {[%clk 0:00:06]}  Ne3+ {[%clk 0:00:06]} 95. Kg1 {[%clk 0:00:06]}  Ke2 {[%clk 0:00:05]} 96. Kh2 {[%clk 0:00:06]}  f3 {[%clk 0:00:06]} 97. Kg3 {[%clk 0:00:06]}  f2 {[%clk 0:00:06]} 98. Kh2 {[%clk 0:00:05]}  f1=Q {[%clk 0:00:06]} 99. Kg3 {[%clk 0:00:06]}  Qf3+ {[%clk 0:00:07]} 100. Kh2 {[%clk 0:00:05]}  Qg2# {[%clk 0:00:06]} 0-1


[Site "https://www.chess.com"]

[Event "Titled Tuesday Blitz March 07 Late 2023"]
[White "Hernandez Sanchez, Elvis De La Caridad"]
[Black "Comas Fabrego, Lluis"]
[WhiteFideId "6400353"]
[BlackFideId "2200325"]
[WhiteElo "2458"]
[BlackElo "2523"]
[Result "1-0"]
[Round "02"]
[TimeControl "180+2"]
[Date "2023.03.07"]
[WhiteClock "0:00:45"]
[BlackClock "0:00:10"]

1. e4 {[%clk 0:03:00]}  c5 {[%clk 0:02:59]} 2. Nf3 {[%clk 0:03:00]}  d6 {[%clk 0:02:59]} 3. d4 {[%clk 0:02:59]}  cxd4 {[%clk 0:02:59]} 4. Nxd4 {[%clk 0:03:00]}  Nf6 {[%clk 0:02:59]} 5. Nc3 {[%clk 0:03:00]}  g6 {[%clk 0:02:59]} 6. Be3 {[%clk 0:02:54]}  Bg7 {[%clk 0:03:00]} 7. Nb3 {[%clk 0:02:50]}  O-O {[%clk 0:02:59]} 8. f3 {[%clk 0:02:50]}  Nc6 {[%clk 0:02:59]} 9. Qd2 {[%clk 0:02:50]}  a5 {[%clk 0:02:58]} 10. Bb5 {[%clk 0:02:35]}  Be6 {[%clk 0:02:39]} 11. O-O-O {[%clk 0:02:27]}  Nd7 {[%clk 0:02:39]} 12. h4 {[%clk 0:02:17]}  a4 {[%clk 0:02:23]} 13. Nxa4 {[%clk 0:02:16]}  Nce5 {[%clk 0:02:20]} 14. h5 {[%clk 0:02:04]}  Nb6 {[%clk 0:02:08]} 15. Bxb6 {[%clk 0:01:51]}  Qc8 {[%clk 0:02:05]} 16. hxg6 {[%clk 0:01:44]}  hxg6 {[%clk 0:02:04]} 17. Bd4 {[%clk 0:01:28]}  Bc4 {[%clk 0:02:02]} 18. Nb6 {[%clk 0:01:13]}  Qe6 {[%clk 0:01:36]} 19. Nxc4 {[%clk 0:01:09]}  Nxc4 {[%clk 0:01:29]} 20. Bxc4 {[%clk 0:01:08]}  Qxc4 {[%clk 0:01:22]} 21. Bxg7 {[%clk 0:01:05]}  Kxg7 {[%clk 0:01:22]} 22. Qd4+ {[%clk 0:00:56]}  Qxd4 {[%clk 0:01:22]} 23. Rxd4 {[%clk 0:00:57]}  Rxa2 {[%clk 0:01:21]} 24. Rb4 {[%clk 0:00:55]}  Rfa8 {[%clk 0:01:15]} 25. Kb1 {[%clk 0:00:51]}  R2a7 {[%clk 0:01:08]} 26. g4 {[%clk 0:00:50]}  Rc8 {[%clk 0:01:01]} 27. c3 {[%clk 0:00:50]}  Rc7 {[%clk 0:00:52]} 28. Kc2 {[%clk 0:00:49]}  Ra6 {[%clk 0:00:45]} 29. Ra1 {[%clk 0:00:49]}  Rxa1 {[%clk 0:00:33]} 30. Nxa1 {[%clk 0:00:49]}  Kf6 {[%clk 0:00:33]} 31. Kd3 {[%clk 0:00:48]}  Kg5 {[%clk 0:00:32]} 32. Ke3 {[%clk 0:00:48]}  e5 {[%clk 0:00:31]} 33. Nb3 {[%clk 0:00:47]}  f5 {[%clk 0:00:30]} 34. gxf5 {[%clk 0:00:48]}  gxf5 {[%clk 0:00:30]} 35. exf5 {[%clk 0:00:49]}  Kxf5 {[%clk 0:00:31]} 36. Na5 {[%clk 0:00:49]}  Rh7 {[%clk 0:00:27]} 37. Nxb7 {[%clk 0:00:48]}  Rh1 {[%clk 0:00:26]} 38. Nxd6+ {[%clk 0:00:47]}  Ke6 {[%clk 0:00:25]} 39. Ne4 {[%clk 0:00:47]}  Re1+ {[%clk 0:00:25]} 40. Kd2 {[%clk 0:00:47]}  Rh1 {[%clk 0:00:24]} 41. Rb6+ {[%clk 0:00:46]}  Ke7 {[%clk 0:00:21]} 42. b4 {[%clk 0:00:45]}  Rh2+ {[%clk 0:00:21]} 43. Ke3 {[%clk 0:00:44]}  Rb2 {[%clk 0:00:21]} 44. b5 {[%clk 0:00:45]}  Rb1 {[%clk 0:00:19]} 45. c4 {[%clk 0:00:45]}  Kd7 {[%clk 0:00:18]} 46. c5 {[%clk 0:00:45]}  Rc1 {[%clk 0:00:16]} 47. c6+ {[%clk 0:00:44]}  Kc7 {[%clk 0:00:13]} 48. Rb7+ {[%clk 0:00:44]}  Kc8 {[%clk 0:00:11]} 49. Nd6+ {[%clk 0:00:44]}  Kd8 {[%clk 0:00:10]} 50. Rd7# {[%clk 0:00:45]} 1-0


[Site "https://www.chess.com"]

[Event "Titled Tuesday Blitz March 07 Late 2023"]
[White "Ansh M Shah"]
[Black "rikchessmx"]
[WhiteFideId "25033379"]
[WhiteElo "2084"]
[BlackElo "2191"]
[Result "1-0"]
[Round "02"]
[TimeControl "180+2"]
[Date "2023.03.07"]
[WhiteClock "0:00:46"]
[BlackClock "0:01:39"]

1. d4 {[%clk 0:03:00]}  Nf6 {[%clk 0:02:53]} 2. c4 {[%clk 0:02:57]}  e6 {[%clk 0:02:54]} 3. g3 {[%clk 0:02:56]}  c5 {[%clk 0:02:54]} 4. d5 {[%clk 0:02:56]}  exd5 {[%clk 0:02:52]} 5. cxd5 {[%clk 0:02:57]}  d6 {[%clk 0:02:52]} 6. Bg2 {[%clk 0:02:58]}  b5 {[%clk 0:02:52]} 7. a4 {[%clk 0:02:58]}  b4 {[%clk 0:02:52]} 8. Nd2 {[%clk 0:02:57]}  Be7 {[%clk 0:02:49]} 9. Nc4 {[%clk 0:02:57]}  Ba6 {[%clk 0:02:49]} 10. b3 {[%clk 0:02:57]}  Bxc4 {[%clk 0:02:49]} 11. bxc4 {[%clk 0:02:57]}  O-O {[%clk 0:02:46]} 12. a5 {[%clk 0:02:57]}  Nfd7 {[%clk 0:02:46]} 13. Bb2 {[%clk 0:02:56]}  Bf6 {[%clk 0:02:47]} 14. Qc1 {[%clk 0:02:52]}  Re8 {[%clk 0:02:45]} 15. Nf3 {[%clk 0:02:52]}  Qe7 {[%clk 0:02:45]} 16. e3 {[%clk 0:02:52]}  Ne5 {[%clk 0:02:40]} 17. O-O {[%clk 0:02:46]}  Nd3 {[%clk 0:02:36]} 18. Bxf6 {[%clk 0:02:45]}  Nxc1 {[%clk 0:02:31]} 19. Bxe7 {[%clk 0:02:45]}  Ne2+ {[%clk 0:02:26]} 20. Kh1 {[%clk 0:02:45]}  Rxe7 {[%clk 0:02:26]} 21. Nd2 {[%clk 0:02:31]}  Nd7 {[%clk 0:02:22]} 22. Ne4 {[%clk 0:02:09]}  Ne5 {[%clk 0:02:16]} 23. Nxd6 {[%clk 0:01:45]}  Rd8 {[%clk 0:02:14]} 24. Ne4 {[%clk 0:01:40]}  Rc7 {[%clk 0:02:05]} 25. Rfe1 {[%clk 0:01:27]}  Nxg3+ {[%clk 0:02:00]} 26. hxg3 {[%clk 0:01:13]}  Nxc4 {[%clk 0:01:59]} 27. Rec1 {[%clk 0:01:09]}  f5 {[%clk 0:01:48]} 28. Rxc4 {[%clk 0:01:08]}  fxe4 {[%clk 0:01:47]} 29. Bxe4 {[%clk 0:01:09]}  g6 {[%clk 0:01:47]} 30. Rac1 {[%clk 0:01:06]}  b3 {[%clk 0:01:46]} 31. Rb1 {[%clk 0:01:05]}  Rb8 {[%clk 0:01:45]} 32. Kg2 {[%clk 0:01:03]}  Rb5 {[%clk 0:01:45]} 33. Rb2 {[%clk 0:01:02]}  Kg7 {[%clk 0:01:41]} 34. a6 {[%clk 0:00:56]}  Kf6 {[%clk 0:01:40]} 35. d6 {[%clk 0:00:46]}  Rd7 {[%clk 0:01:39]} 36. Bc6 {[%clk 0:00:46]} 1-0


[Site "https://www.chess.com"]

[Event "Titled Tuesday Blitz March 07 Late 2023"]
[White "Gamage, Wanshini Vidusama"]
[Black "Yeritsyan, Hayk"]
[WhiteFideId "9953752"]
[BlackFideId "13307320"]
[WhiteElo "2178"]
[BlackElo "2450"]
[Result "0-1"]
[Round "02"]
[TimeControl "180+2"]
[Date "2023.03.07"]
[WhiteClock "0:00:17"]
[BlackClock "0:00:07"]

1. e4 {[%clk 0:03:00]}  c6 {[%clk 0:02:59]} 2. d4 {[%clk 0:03:00]}  d5 {[%clk 0:03:00]} 3. e5 {[%clk 0:03:01]}  c5 {[%clk 0:03:00]} 4. Nf3 {[%clk 0:03:01]}  Nc6 {[%clk 0:02:58]} 5. dxc5 {[%clk 0:03:01]}  Bg4 {[%clk 0:02:57]} 6. Bb5 {[%clk 0:02:55]}  e6 {[%clk 0:02:56]} 7. Be3 {[%clk 0:02:54]}  Ne7 {[%clk 0:02:41]} 8. a3 {[%clk 0:02:48]}  Nf5 {[%clk 0:02:36]} 9. Qd3 {[%clk 0:02:09]}  Bxf3 {[%clk 0:02:31]} 10. gxf3 {[%clk 0:02:08]}  Nxe3 {[%clk 0:02:07]} 11. fxe3 {[%clk 0:02:03]}  a6 {[%clk 0:02:07]} 12. Bxc6+ {[%clk 0:02:03]}  bxc6 {[%clk 0:02:08]} 13. b4 {[%clk 0:01:58]}  Qh4+ {[%clk 0:02:03]} 14. Ke2 {[%clk 0:01:54]}  Qh5 {[%clk 0:01:53]} 15. Qd4 {[%clk 0:01:44]}  Qg6 {[%clk 0:01:49]} 16. Nd2 {[%clk 0:01:32]}  Qxc2 {[%clk 0:01:37]} 17. Rhg1 {[%clk 0:01:30]}  Qf5 {[%clk 0:01:24]} 18. Qf4 {[%clk 0:01:22]}  Qxf4 {[%clk 0:01:19]} 19. exf4 {[%clk 0:01:22]}  g6 {[%clk 0:01:19]} 20. Nb3 {[%clk 0:01:22]}  Bh6 {[%clk 0:01:12]} 21. Ke3 {[%clk 0:01:20]}  Kd7 {[%clk 0:01:11]} 22. h4 {[%clk 0:01:19]}  Rhf8 {[%clk 0:01:09]} 23. h5 {[%clk 0:01:17]}  f6 {[%clk 0:00:57]} 24. exf6 {[%clk 0:01:08]}  Rxf6 {[%clk 0:00:56]} 25. hxg6 {[%clk 0:00:53]}  hxg6 {[%clk 0:00:37]} 26. Rg4 {[%clk 0:00:50]}  e5 {[%clk 0:00:36]} 27. Rag1 {[%clk 0:00:46]}  Bxf4+ {[%clk 0:00:25]} 28. Ke2 {[%clk 0:00:46]}  g5 {[%clk 0:00:25]} 29. Rh1 {[%clk 0:00:46]}  Rf7 {[%clk 0:00:24]} 30. Rh6 {[%clk 0:00:40]}  Re8 {[%clk 0:00:21]} 31. Na5 {[%clk 0:00:37]}  e4 {[%clk 0:00:18]} 32. Rxc6 {[%clk 0:00:28]}  exf3+ {[%clk 0:00:18]} 33. Kxf3 {[%clk 0:00:29]}  Re3+ {[%clk 0:00:18]} 34. Kf2 {[%clk 0:00:29]}  Rxa3 {[%clk 0:00:18]} 35. Rxa6 {[%clk 0:00:29]}  Bd2+ {[%clk 0:00:16]} 36. Ke2 {[%clk 0:00:28]}  Rf4 {[%clk 0:00:14]} 37. Ra7+ {[%clk 0:00:25]}  Ke6 {[%clk 0:00:13]} 38. Ra6+ {[%clk 0:00:20]}  Kf5 {[%clk 0:00:12]} 39. Nc6 {[%clk 0:00:20]}  Rxg4 {[%clk 0:00:09]} 40. Rxa3 {[%clk 0:00:19]}  Bxb4 {[%clk 0:00:09]} 41. Nxb4 {[%clk 0:00:18]}  Rxb4 {[%clk 0:00:09]} 42. Rc3 {[%clk 0:00:18]}  Rc4 {[%clk 0:00:09]} 43. Rd3 {[%clk 0:00:17]}  Rxc5 {[%clk 0:00:09]} 44. Kf3 {[%clk 0:00:18]}  Ke5 {[%clk 0:00:07]} 45. Kg4 {[%clk 0:00:16]}  Ke4 {[%clk 0:00:07]} 46. Rd1 {[%clk 0:00:17]}  d4 {[%clk 0:00:08]} 47. Re1+ {[%clk 0:00:16]}  Kd3 {[%clk 0:00:08]} 48. Kf3 {[%clk 0:00:16]}  Rf5+ {[%clk 0:00:08]} 49. Kg4 {[%clk 0:00:16]}  Rf8 {[%clk 0:00:08]} 50. Kxg5 {[%clk 0:00:16]}  Kd2 {[%clk 0:00:09]} 51. Re6 {[%clk 0:00:15]}  d3 {[%clk 0:00:09]} 52. Kg4 {[%clk 0:00:16]}  Kd1 {[%clk 0:00:09]} 53. Kg3 {[%clk 0:00:17]}  d2 {[%clk 0:00:09]} 54. Kg2 {[%clk 0:00:18]}  Rc8 {[%clk 0:00:07]} 55. Rd6 {[%clk 0:00:17]}  Kc1 {[%clk 0:00:07]} 0-1


[Site "https://www.chess.com"]

[Event "Titled Tuesday Blitz March 07 Late 2023"]
[White "Gonzalez, Francisco Silva"]
[Black "Sailer, Mike"]
[WhiteFideId "1512285"]
[BlackFideId "2012901"]
[WhiteElo "2074"]
[BlackElo "2109"]
[Result "1-0"]
[Round "02"]
[TimeControl "180+2"]
[Date "2023.03.07"]
[WhiteClock "0:01:08"]
[BlackClock "0:00:02"]

1. d4 {[%clk 0:02:59]}  d5 {[%clk 0:02:59]} 2. c4 {[%clk 0:02:54]}  Bf5 {[%clk 0:02:59]} 3. cxd5 {[%clk 0:02:53]}  Bxb1 {[%clk 0:02:58]} 4. Qa4+ {[%clk 0:02:51]}  Qd7 {[%clk 0:02:58]} 5. Qxd7+ {[%clk 0:02:50]}  Nxd7 {[%clk 0:02:59]} 6. Rxb1 {[%clk 0:02:51]}  Ngf6 {[%clk 0:02:59]} 7. f3 {[%clk 0:02:51]}  Nxd5 {[%clk 0:02:58]} 8. e4 {[%clk 0:02:51]}  N5b6 {[%clk 0:02:52]} 9. a3 {[%clk 0:02:49]}  O-O-O {[%clk 0:02:49]} 10. Be3 {[%clk 0:02:47]}  e5 {[%clk 0:02:46]} 11. d5 {[%clk 0:02:46]}  Bc5 {[%clk 0:02:46]} 12. Bxc5 {[%clk 0:02:43]}  Nxc5 {[%clk 0:02:47]} 13. b4 {[%clk 0:02:43]}  Ncd7 {[%clk 0:02:38]} 14. Rc1 {[%clk 0:02:42]}  Kb8 {[%clk 0:02:37]} 15. Nh3 {[%clk 0:02:40]}  h6 {[%clk 0:02:35]} 16. Bb5 {[%clk 0:02:39]}  a6 {[%clk 0:02:33]} 17. Bxd7 {[%clk 0:02:38]}  Rxd7 {[%clk 0:02:31]} 18. Ke2 {[%clk 0:02:38]}  Nc8 {[%clk 0:02:19]} 19. Rc5 {[%clk 0:02:34]}  Nd6 {[%clk 0:02:19]} 20. Rhc1 {[%clk 0:02:31]}  g6 {[%clk 0:02:15]} 21. a4 {[%clk 0:02:30]}  f5 {[%clk 0:02:03]} 22. Nf2 {[%clk 0:02:29]}  Rf8 {[%clk 0:01:50]} 23. Ke3 {[%clk 0:02:26]}  Rdf7 {[%clk 0:01:48]} 24. R1c2 {[%clk 0:02:25]}  fxe4 {[%clk 0:01:28]} 25. Nxe4 {[%clk 0:02:16]}  Nxe4 {[%clk 0:01:19]} 26. fxe4 {[%clk 0:02:15]}  Rd7 {[%clk 0:01:08]} 27. a5 {[%clk 0:02:11]}  Rf1 {[%clk 0:01:02]} 28. Rf2 {[%clk 0:02:11]}  Rxf2 {[%clk 0:00:58]} 29. Kxf2 {[%clk 0:02:10]}  Rf7+ {[%clk 0:00:59]} 30. Ke3 {[%clk 0:02:08]}  Rf6 {[%clk 0:00:57]} 31. Rc1 {[%clk 0:02:06]}  Kc8 {[%clk 0:00:56]} 32. g3 {[%clk 0:02:03]}  Kd7 {[%clk 0:00:56]} 33. h4 {[%clk 0:02:02]}  h5 {[%clk 0:00:54]} 34. Rb1 {[%clk 0:01:58]}  Rf8 {[%clk 0:00:36]} 35. b5 {[%clk 0:01:54]}  Rf6 {[%clk 0:00:36]} 36. b6 {[%clk 0:01:52]}  cxb6 {[%clk 0:00:34]} 37. axb6 {[%clk 0:01:38]}  Kd8 {[%clk 0:00:24]} 38. Ke2 {[%clk 0:01:32]}  Rd6 {[%clk 0:00:17]} 39. Kf3 {[%clk 0:01:29]}  Ke7 {[%clk 0:00:17]} 40. g4 {[%clk 0:01:28]}  Kf6 {[%clk 0:00:15]} 41. Kg3 {[%clk 0:01:24]}  Kf7 {[%clk 0:00:14]} 42. g5 {[%clk 0:01:23]}  Ke7 {[%clk 0:00:14]} 43. Kf3 {[%clk 0:01:23]}  Kd7 {[%clk 0:00:14]} 44. Ke3 {[%clk 0:01:22]}  Ke7 {[%clk 0:00:14]} 45. Kd3 {[%clk 0:01:22]}  Rd8 {[%clk 0:00:15]} 46. Rf1 {[%clk 0:01:18]}  Rc8 {[%clk 0:00:12]} 47. Rf6 {[%clk 0:01:17]}  Rc1 {[%clk 0:00:11]} 48. Rxg6 {[%clk 0:01:17]}  Rd1+ {[%clk 0:00:08]} 49. Ke2 {[%clk 0:01:17]}  Rh1 {[%clk 0:00:08]} 50. Rg7+ {[%clk 0:01:14]}  Kd8 {[%clk 0:00:07]} 51. Rxb7 {[%clk 0:01:13]}  Rxh4 {[%clk 0:00:08]} 52. Kf3 {[%clk 0:01:12]}  Rh3+ {[%clk 0:00:08]} 53. Kf2 {[%clk 0:01:12]}  Rh4 {[%clk 0:00:05]} 54. g6 {[%clk 0:01:09]}  Rg4 {[%clk 0:00:03]} 55. g7 {[%clk 0:01:10]}  Kc8 {[%clk 0:00:04]} 56. Ra7 {[%clk 0:01:09]}  Kb8 {[%clk 0:00:05]} 57. Rf7 {[%clk 0:01:09]}  Rf4+ {[%clk 0:00:02]} 58. Rxf4 {[%clk 0:01:08]} 1-0


[Site "https://www.chess.com"]

[Event "Titled Tuesday Blitz March 07 Late 2023"]
[White "Gasparyan, David"]
[Black "Chemin, Justo Reinaldo"]
[WhiteFideId "13311980"]
[BlackFideId "2101580"]
[WhiteElo "2437"]
[BlackElo "1940"]
[Result "1/2-1/2"]
[Round "02"]
[TimeControl "180+2"]
[Date "2023.03.07"]
[WhiteClock "0:01:04"]
[BlackClock "0:00:52"]

1. Nf3 {[%clk 0:02:59]}  e6 {[%clk 0:03:00]} 2. g3 {[%clk 0:03:00]}  d5 {[%clk 0:03:00]} 3. Bg2 {[%clk 0:03:00]}  Nf6 {[%clk 0:03:00]} 4. d3 {[%clk 0:03:01]}  Nbd7 {[%clk 0:03:00]} 5. O-O {[%clk 0:03:01]}  b6 {[%clk 0:03:00]} 6. c4 {[%clk 0:03:01]}  Bb7 {[%clk 0:03:01]} 7. Nc3 {[%clk 0:03:01]}  Be7 {[%clk 0:02:59]} 8. Bf4 {[%clk 0:02:54]}  O-O {[%clk 0:02:59]} 9. Ne5 {[%clk 0:02:52]}  Nxe5 {[%clk 0:02:58]} 10. Bxe5 {[%clk 0:02:52]}  Rc8 {[%clk 0:02:53]} 11. Qa4 {[%clk 0:02:49]}  a6 {[%clk 0:02:50]} 12. cxd5 {[%clk 0:02:45]}  exd5 {[%clk 0:02:45]} 13. d4 {[%clk 0:02:33]}  Re8 {[%clk 0:02:36]} 14. Rac1 {[%clk 0:02:32]}  b5 {[%clk 0:02:25]} 15. Qc2 {[%clk 0:02:24]}  c6 {[%clk 0:02:21]} 16. Bh3 {[%clk 0:02:21]}  Ra8 {[%clk 0:02:20]} 17. e4 {[%clk 0:02:16]}  dxe4 {[%clk 0:02:12]} 18. Nxe4 {[%clk 0:02:17]}  Nxe4 {[%clk 0:02:12]} 19. Qxe4 {[%clk 0:02:18]}  Bd6 {[%clk 0:02:06]} 20. Qf4 {[%clk 0:02:04]}  Bxe5 {[%clk 0:02:04]} 21. dxe5 {[%clk 0:02:05]}  Qe7 {[%clk 0:02:01]} 22. b4 {[%clk 0:02:02]}  Qxe5 {[%clk 0:01:50]} 23. Qxe5 {[%clk 0:01:58]}  Rxe5 {[%clk 0:01:49]} 24. Bd7 {[%clk 0:01:57]}  Rd8 {[%clk 0:01:38]} 25. Bxc6 {[%clk 0:01:55]}  Bxc6 {[%clk 0:01:39]} 26. Rxc6 {[%clk 0:01:56]}  Re6 {[%clk 0:01:30]} 27. Rfc1 {[%clk 0:01:55]}  Rxc6 {[%clk 0:01:23]} 28. Rxc6 {[%clk 0:01:55]}  Ra8 {[%clk 0:01:24]} 29. f4 {[%clk 0:01:49]}  h6 {[%clk 0:01:25]} 30. f5 {[%clk 0:01:48]}  a5 {[%clk 0:01:25]} 31. a3 {[%clk 0:01:34]}  axb4 {[%clk 0:01:25]} 32. axb4 {[%clk 0:01:35]}  Ra4 {[%clk 0:01:23]} 33. Rc8+ {[%clk 0:01:35]}  Kh7 {[%clk 0:01:23]} 34. Rc7 {[%clk 0:01:35]}  Rxb4 {[%clk 0:01:12]} 35. Rxf7 {[%clk 0:01:35]}  Kg8 {[%clk 0:01:11]} 36. Rb7 {[%clk 0:01:34]}  Rb2 {[%clk 0:01:11]} 37. g4 {[%clk 0:01:28]}  b4 {[%clk 0:01:11]} 38. h4 {[%clk 0:01:27]}  b3 {[%clk 0:01:11]} 39. g5 {[%clk 0:01:25]}  hxg5 {[%clk 0:01:08]} 40. hxg5 {[%clk 0:01:26]}  Rb1+ {[%clk 0:01:06]} 41. Kg2 {[%clk 0:01:26]}  Kf8 {[%clk 0:01:06]} 42. g6 {[%clk 0:01:25]}  Rb2+ {[%clk 0:01:01]} 43. Kg3 {[%clk 0:01:24]}  Rb1 {[%clk 0:01:00]} 44. Rb8+ {[%clk 0:01:24]}  Ke7 {[%clk 0:00:59]} 45. Rg8 {[%clk 0:01:16]}  Kf6 {[%clk 0:00:58]} 46. Rf8+ {[%clk 0:01:16]}  Kg5 {[%clk 0:00:58]} 47. f6 {[%clk 0:01:15]}  Kxg6 {[%clk 0:00:53]} 48. f7 {[%clk 0:01:11]}  Rf1 {[%clk 0:00:51]} 49. Rb8 {[%clk 0:01:10]}  Rxf7 {[%clk 0:00:50]} 50. Rxb3 {[%clk 0:01:10]}  Rf6 {[%clk 0:00:51]} 51. Kg4 {[%clk 0:01:09]}  Rc6 {[%clk 0:00:49]} 52. Rb4 {[%clk 0:01:09]}  Rc5 {[%clk 0:00:49]} 53. Ra4 {[%clk 0:01:08]}  Rc6 {[%clk 0:00:48]} 54. Rb4 {[%clk 0:01:08]}  Rf6 {[%clk 0:00:48]} 55. Ra4 {[%clk 0:01:04]}  Re6 {[%clk 0:00:49]} 56. Rb4 {[%clk 0:01:03]}  Rf6 {[%clk 0:00:50]} 57. Ra4 {[%clk 0:01:03]}  Re6 {[%clk 0:00:51]} 58. Rb4 {[%clk 0:01:04]}  Rf6 {[%clk 0:00:52]} 1/2-1/2


[Site "https://www.chess.com"]